Cogmind - Beta 9.6 @@@ ROGUE MODE // 2020.05.30 @ 21:19:01 Player: pGoos Result: Destroyed by Y-45 Defender with Heavy Assault Rifle Performance ------------- Evolutions (1) 500 Regions Visited (2) 400 Robots Destroyed (8) 40 Value Destroyed (159) 159 Prototype IDs (0) 0 Alien Tech Used (0) 0 Bonus (200) 200 TOTAL SCORE: 1299 Bonus ------- Pacifist 200 Cogmind --------- Core Integrity 0/400 Matter 215/300 Energy 53/100 System Corruption 0% Temperature Cool (9) Movement Flying (34) Location -9/Materials Parts ------- > --- POWER (1) -------- (None) > --- PROPULSION (3) --- Flight Unit Flight Unit Flight Unit > --- UTILITY (3) ------ Small Storage Unit > --- WEAPON (2) ------- (None) > --- INVENTORY (6) ---- Light Ion Engine Peak State ------------ > --- POWER ------------ Light Ion Engine > --- PROPULSION ------- Aluminum Leg Aluminum Leg Aluminum Leg > --- UTILITY ---------- Small Storage Unit > --- WEAPON ----------- Medium Laser Welding Torch > --- INVENTORY -------- Light Ion Engine Light Treads Light Treads Medium Laser Assault Rifle Light Cannon [Rating: 7] Favorites ----------- Power Light Ion Engine Engine Light Ion Engine Propulsion Aluminum Leg Treads Light Treads Leg Aluminum Leg Flight Unit Flight Unit Utility Small Storage Unit Storage Small Storage Unit Weapon Medium Laser Energy Gun Medium Laser Ballistic Gun Assault Rifle Ballistic Cannon Light Cannon Special Weapon Welding Torch Build | -11 -10 -9 ------- Run | Scr Mat Mat Slots Evolved 2 | . . 2 Power . | . . . Propulsion 1 | . . 1 Utility 1 | . . 1 Weapon . | . . . Parts Attached 20 | 7 . 13 Power 3 | 1 . 2 Engine 3 | 1 . 2 Core . | . . . Reactor . | . . . Propulsion 9 | 3 . 6 Treads 1 | 1 . . Leg 5 | 2 . 3 Wheel . | . . . Hover . | . . . Flight 3 | . . 3 Utility 1 | 1 . . Device . | . . . Storage 1 | 1 . . Processor . | . . . Hackware . | . . . Protection . | . . . Artifact . | . . . Weapon 7 | 2 . 5 Energy Gun 4 | 2 . 2 Energy Cannon . | . . . Ballistic Gun 1 | . . 1 Ballistic Cannon 1 | . . 1 Launcher . | . . . Special Weapon 1 | . . 1 Impact Weapon . | . . . Slashing Weapon . | . . . Piercing Weapon . | . . . Special Melee Weapon . | . . . Unidentified Prototypes . | . . . Parts Lost 11 | . . 11 Power 2 | . . 2 Propulsion 4 | . . 4 Utility . | . . . Weapon 5 | . . 5 Highest Loss Streak 11 | . . 11 Average Slot Usage (%) 71 | . 85 68 Engine 10 | . 14 10 Leg 26 | . 28 26 Storage 11 | . 14 11 Energy Gun 17 | . 28 14 Special Weapon 2 | . . 3 Naked Turns . | . . . Heaviest Build 11 | 11 11 11 Greatest Support 30 | 20 20 30 Greatest Overweight (x) 2 | 1 . 2 Average Overweight (x) . | . . . Largest Inventory Capacity 6 | 6 6 6 Average Capacity 5 | 5 6 6 Most Carried 6 | 4 5 6 Average Carried 4 | 2 4 5 Final Capacity 6 | 6 6 6 Final Carried 5 | 4 5 1 Class Distribution -------------------- 100% | Mutant Dominant Class ---------------- Mutant | -10/Materials Mutant | -9/Materials Resources | -11 -10 -9 ----------- Run | Scr Mat Mat Matter Collected 257 | 161 . 96 Remotely . | . . . Salvage Created 186 | . . 186 Parts 6 | . . 6 Haulers Intercepted . | . . . Recyclers Shooed . | . . . Parts Field Recycled . | . . . Retrieved Matter . | . . . Parts Self-Destructed . | . . . Prevented . | . . . Kills | -11 -10 -9 ------- Run | Scr Mat Mat Combat Hostiles Destroyed 6 | . . 6 Guns 5 | . . 5 AOE 1 | . . 1 Classes Destroyed 4 | . . 4 Worker 1 | . . 1 Recycler 1 | . . 1 Swarmer 3 | . . 3 Grunt 3 | . . 3 Best Kill Streak 6 | . . 6 Combat Bots Only 4 | . . 4 Max Kills in Single Turn 3 | . . 3 Gunslinging . | . . . Exploded 1 | . . 1 Melee . | . . . Uniques/NPCs Destroyed . | . . . Combat | -11 -10 -9 -------- Run | Scr Mat Mat Damage Taken 1347 | . . 1347 Core 405 | . . 405 Absorbed by Shields . | . . . Core Remaining (%) 100 | 100 100 . Volleys Fired 36 | . . 36 Largest 2 | . . 2 Hottest 100 | . . 100 Shots Fired 67 | . . 67 Gun 48 | . . 48 Cannon 2 | . . 2 Launcher . | . . . Special 17 | . . 17 Kinetic 4 | . . 4 Thermal 63 | . . 63 Explosive . | . . . Electromagnetic . | . . . Robot Hit Streak 6 | . . 6 Robot Miss Streak 4 | . . 4 Penetration Max . | . . . Secondary Targets . | . . . Shots Hit Robots 28 | . . 28 Core Hits 12 | . . 12 Critical Hits . | . . . Critical Kills . | . . . Critical Parts Destroyed . | . . . Melee Attacks . | . . . Impact . | . . . Slashing . | . . . Piercing . | . . . Sneak Attacks . | . . . Combat Hostiles . | . . . Follow-up Attacks . | . . . Damage Inflicted 696 | . . 696 Guns 212 | . . 212 Cannons . | . . . Explosions 470 | . . 470 Melee . | . . . Ramming 4 | . . 4 Kinetic 10 | . . 10 Thermal 212 | . . 212 Explosive 470 | . . 470 Electromagnetic . | . . . Impact . | . . . Slashing . | . . . Piercing . | . . . Highest Corruption . | . . . Average Corruption . | . . . Corruption Purged . | . . . Overload Shots . | . . . Overflow Damage 48 | . . 48 Projectiles . | . . . Explosions 48 | . . 48 Melee . | . . . Knockbacks . | . . . Impact . | . . . Kinetic . | . . . Secondary . | . . . Self-Inflicted Damage 115 | . . 115 Shots 1 | . . 1 Rammed 3 | . . 3 Targets Rammed 4 | . . 4 Kicked 1 | . . 1 Crushed . | . . . Highest Temperature 338 | . . 338 Average Temperature 125 | . . 125 Received Heat Transfer 312 | . . 312 Siege Activations . | . . . Robots Corrupted . | . . . Combat Hostiles . | . . . Parts Fried . | . . . Impact Corruptions . | . . . Robots Melted . | . . . Combat Hostiles . | . . . Parts Melted 2 | . . 2 Heat Transferred 667 | . . 667 Parts Sabotaged . | . . . Parts Stolen . | . . . Parts Stripped . | . . . Power Chain Reactions . | . . . Missiles Intercepted . | . . . Alert | -11 -10 -9 ------- Run | Scr Mat Mat Peak Influence 241 | . 15 241 Average Influence 65 | . 12 91 Maximum Alert Level 1 | . . 1 Low Security (%) 87 | 100 100 81 Level 1 12 | . . 18 Level 2 . | . . . Level 3 . | . . . Level 4 . | . . . Level 5 . | . . . High Security . | . . . Max Security . | . . . Squads Dispatched 3 | . . 3 Investigation 2 | . . 2 Extermination . | . . . Reinforcement 1 | . . 1 Assault . | . . . Garrison . | . . . Intercept . | . . . Construction Impeded . | . . . Haulers Reinforced . | . . . Stealth | -11 -10 -9 --------- Run | Scr Mat Mat Distress Signals 5 | . 1 4 Communications Jammed . | . . . Distress Signals . | . . . Times Spotted 28 | . 2 26 Peak Tracking Total 15 | . 2 15 Tactical Retreats 3 | . 1 2 Traps | -11 -10 -9 ------- Run | Scr Mat Mat Traps Triggered . | . . . Indirectly . | . . . Trap Hack Attempts . | . . . Triggered . | . . . Disarmed . | . . . Reprogrammed . | . . . Reused . | . . . Traps Extracted . | . . . Installed . | . . . Triggered . | . . . Machines | -11 -10 -9 ---------- Run | Scr Mat Mat Machines Disabled 2 | . . 2 Max in Single Turn 2 | . . 2 Machines Sabotaged . | . . . Garrisons Compromised . | . . . Overloaded Fab Kills . | . . . Fab Network Shutdowns . | . . . Hacking | -11 -10 -9 --------- Run | Scr Mat Mat Machines Accessed 3 | . . 3 Terminals 3 | . . 3 Fabricators . | . . . Repair Stations . | . . . Recycling Units . | . . . Scanalyzers . | . . . Garrison Access . | . . . Total Hacks 9 | . . 9 Successful 6 | . . 6 Failed 3 | . . 3 Catastrophic 1 | . . 1 Database Lockouts . | . . . Manual . | . . . Terminals 9 | . . 9 Fabricators . | . . . Repair Stations . | . . . Recycling Units . | . . . Scanalyzers . | . . . Garrison Access . | . . . Terminal Hacks 6 | . . 6 Emergency Access Points 2 | . . 2 Recall Investigation 1 | . . 1 Recall Reinforcements 2 | . . 2 Hauler Manifests 1 | . . 1 Fabricator Hacks . | . . . Repair Station Hacks . | . . . Recycling Unit Hacks . | . . . Scanalyzer . | . . . Garrison Access Hacks . | . . . Unauthorized Hacks . | . . . Terminals . | . . . Fabricators . | . . . Repair Stations . | . . . Recycling Units . | . . . Scanalyzers . | . . . Garrison Access . | . . . Data Cores Recovered . | . . . Used . | . . . Hacking Detections 3 | . . 3 Full Trace Events 2 | . . 2 Feedback Events . | . . . Feedback Blocked . | . . . Robot Schematics Acquired . | . . . Robots Built . | . . . Matter . | . . . Time . | . . . Total Robot Build Rating . | . . . Part Schematics Acquired . | . . . Parts Built . | . . . Matter . | . . . Time . | . . . Total Part Build Rating . | . . . Parts Repaired . | . . . Time . | . . . Parts Recycled . | . . . Recycled Matter . | . . . Retrieved Matter . | . . . Retrieved Components . | . . . Parts Scanalyzed . | . . . Part Schematics Acquired . | . . . Parts Damaged . | . . . Bothacking | -11 -10 -9 ------------ Run | Scr Mat Mat Used RIF Installer . | . . . Robots Hacked . | . . . Non-combat . | . . . Combat . | . . . Robot Hacks Applied . | . . . Relay Couplers Released . | . . . Robots Rewired . | . . . Allies Hacked . | . . . Hacks Repelled . | . . . Allies | -11 -10 -9 -------- Run | Scr Mat Mat Total Allies . | . . . Largest Group . | . . . Highest-Rated Group . | . . . Highest-Rated Ally . | . . . Total Orders . | . . . Ally Attacks . | . . . Total Damage . | . . . Kills . | . . . Allies Corrupted . | . . . Allies Melted . | . . . Intel | -11 -10 -9 ------- Run | Scr Mat Mat Robot Analysis Total . | . . . Derelict Logs Recovered . | . . . Drone Launches . | . . . Drone Recoveries . | . . . Exploration | -11 -10 -9 ------------- Run | Scr Mat Mat Turns Passed 548 | 60 107 381 Spaces Moved 325 | 39 89 197 Core 9 | 3 . 6 Treads 2 | 2 . . Legs 312 | 34 89 189 Wheels . | . . . Hover . | . . . Flight 2 | . . 2 Fastest Speed 37 | 50 120 37 Average Speed 119 | 117 120 119 Slowest Speed 160 | 160 120 150 Overloaded Moves . | . . . Propulsion Burnouts . | . . . Robots Hopped . | . . . Cave-ins Triggered . | . . . Exploration Rate (%) 19 | 4 21 34 Regions Visited 2 Branch Regions . Pre-discovered Areas . | . . . Known Exits Taken . | . . . Unknown Exits Taken 2 | 1 1 . Scrap Searched . | . . . Spaces Dug . | . . . Terrain Destroyed 26 | . . 26 Melee . | . . . Projectile . | . . . AOE 26 | . . 26 Actions | -11 -10 -9 --------- Run | Scr Mat Mat Total 409 | 50 89 270 Wait 15 | 1 . 14 Move 323 | 38 88 197 Hop . | . . . Pick Up 6 | 3 1 2 Fast Attach 12 | 7 . 5 Attach 5 | . . 5 Detach 1 | 1 . . Swap 3 | . . 3 Drop 4 | . . 4 Fire 36 | . . 36 Melee . | . . . Ram . | . . . Kick 4 | . . 4 Crush . | . . . Escape Stasis . | . . . Rewire . | . . . Trap . | . . . Miscellaneous . | . . . Route ------- -11/Scrapyard -10/Materials -9/Materials History --------- Turn | Location | Event 11 | -11/Scrapyard | Discovered new exit (range 15) 61 | -11/Scrapyard | Entered Materials 132 | -10/Materials | Discovered new exit (range 16) 168 | -10/Materials | Entered another Materials area 168 | -9/Materials | Evolved 2 slots: Propulsion x1, Utility x1 303 | -9/Materials | Build established: Mutant 512 | -9/Materials | Core integrity fell below 50% 543 | -9/Materials | Core integrity fell below 20% 549 | -9/Materials | Destroyed by Y-45 Defender with Heavy Assault Rifle Last Messages --------------- 00479_ The unstable cave ceiling collapses. 00480_ K-01 Serf collects debris. 00481_ Aluminum Leg destroyed. 00493_ S-10 Pest destroyed. 00497_ Aluminum Leg destroyed. 00502_ S-10 Pest suffers critical hit. 00502_ S-10 Pest destroyed. 00505_ Lgt. Cannon destroyed. 00506_ Assault Rifle destroyed. 00510_ Slammed into S-10 Pest. 00512_ Kicked S-10 Pest out of the way. 00513_ K-01 Serf collects debris. 00515_ U-05 Engineer lays Concrete. 00534_ Critical hit. 00534_ Med. Laser destroyed. 00538_ Slammed into S-10 Pest. 00541_ Aluminum Leg destroyed. 00542_ S-10 Pest destroyed. 00542_ Lgt. Ion Engine destroyed. 00544_ Acquired Flight Unit. Map ----- +----------------------------------------------------+ | ?????????????????????????????????????????????????? | | ?????????????????????????????????????????????????? | | ?????????????????????????????????????????????????? | | ?????????????????????????????????????????????????? | | ?????????????????????????????????????????????????? | | ?????????????????????????????????????????????????? | | ?????????????????????????????????????????????????? | | ?????????????????????????????????????????????????? | | ?????????????????????????????????????????????????? | | ?????????????????????????????????????????????????? | | ?????????????????????????????????????????????????? | | ????????????????????????########?????????????????? | | ????????????????????????# ! ?????????????????? | | ????????????????????????# ????????????????? | | ????????????????????????# """#???????????????? | | ????????????????????????# """#??????????##???? | | ????????????????????????# """#?????##### ###?? | | ????????????????????????# """#?????# #?? | | ????????????????????????# """#?????# ] "" #?? | | ????????????????????????# #?????# """ #?? | | ????????????????????????# ####### S" #?? | | ????????????????##############+### #! #?? | | ????????????????# *% Y Y # ### | | ????????????????# s g Y + ##[ | | ????????????????# g # """ #=% | | ????????????????# @ = g # """ # " | | ????????????????# g]g # """ # " | | ????????????????# """ ]] # # " | | ????????????????# "T" """ ] #####/### | | ??????????????ag """ """ # " | | ???????????? / " | | ???????????? ? ? o # " | | ????????????????? ################ # | | ???????????????? ????????????????# ### | | ??????????????????????????????? # ## | | ??????????????????????????????? | | ???????????????????????????????? | | ???????????????????????????????? % | | ?????????????????????????????????#######+## = | | ??????????????????????????????????# = # # # | | ??????????????????????????????????# [ | | ??????????????????????????????????# | | ??????????????????????????????????# """ | | ??????????????????????????????????#??""" # | | ?????????????????????????????????????""" | | ?????????????????????????????????????""" " % | | ?????????????????????????????????????""" # "" # | | ????????????????????????????????????? # "T + | | ????????????????????????????????????? ?# "" # | | ???????????????????????????????????? ?# "" # | +----------------------------------------------------+ Best States ------------- Heat Dissipation 28 Energy Generation 10 Energy Capacity 125 Matter Stores 242 Matter Capacity 300 Sight Range 16 Terrain Scan Density 10 Evasion (%) 40 Recoil Reduction 1 Item Schematics ----------------- None Robot Schematics ------------------ None Fabricated ------------ Nothing Alien Tech Used ----------------- None Achievements -------------- None Challenges ------------ None Game ------ Seed BarrageHypercooledHumpback Manual? 0 Play Time 00:10:40 Cumulative 18.9 hours Start 2020.05.30 @ 20:39:30 End 2020.05.30 @ 21:19:01 Sessions 1 Manual Loads 0 Difficulty Rogue Special Mode None Game No. 27 Rogue 27 Adventurer 0 Explorer 0 Win Type - Total 0 Types 0/0/0/0/0/0/0 Lore% 19 Gallery% 21 Achievement% 17 Wizard Run 0 Options --------- ASCII 0 Keyboard 0 Movement Mouse Keybinds 0 Fullscreen 2 Font 24/Terminus Map View 113x50 Tactical HUD 1 Map Filters NONE Filters NONE Steam 1 RUN: ad2bca4a-ae7c-4da5-b317-d97895af0db7